fUSD/lending_fUSD_20240606
["ID","MTS","AMOUNT","RATE_DAILY","PERIOD"]
[328667128,1717684269829,-626.94963818,0.00029998,2]
[328667129,1717684269840,-268.78049174,0.00029998,2]
[328667130,1717684269850,-317.11697702,0.00029998,2]
[328667131,1717684269861,-301.51466406,0.00029998,2]
[328667132,1717684269874,-724.95541199,0.00029998,2]
[328667133,1717684269886,-452.17567874,0.00029998,2]
[328667134,1717684269897,-827.48757697,0.00029998,2]
[328667135,1717684269907,-500.0,0.00029998,3]
[328667136,1717684269918,-648.14431737,0.00029998,2]
[328667137,1717684269928,-213.98814988,0.00029998,2]
[328667138,1717684269939,-1132.16885591,0.00029998,2]
[328667139,1717684269948,-486.02258853,0.00029998,2]
[328667140,1717684269958,-448.20174494,0.00029998,2]
[328667141,1717684269968,-345.61502096,0.00029998,2]
[328667142,1717684269979,-204.30812187,0.00029998,2]
[328667143,1717684269989,-155.0,0.00029998,2]
[328667144,1717684269999,-35394.24475189,0.00029998,2]
[328667145,1717684270010,-1809.13911799,0.00029998,2]
[328667146,1717684270020,-155.97259723,0.00029998,2]
[328667147,1717684270030,-276.70792554,0.00029998,2]
[328667148,1717684270040,-157.90877204,0.00029998,2]
[328667149,1717684270051,-229.00475518,0.00029998,2]
[328667150,1717684270061,-261.19672657,0.00029998,2]
[328667151,1717684270071,-180.62965088,0.00029998,2]
[328667152,1717684270082,-235.77130805,0.00029998,2]
[328667153,1717684270092,-155.0,0.00029998,2]
[328667154,1717684270103,-220.69186956,0.00029998,2]
[328667155,1717684270113,-160.11276068,0.00029998,2]
[328667156,1717684270123,-1355.83434163,0.00029998,2]
[328667157,1717684270134,-500.0,0.00029998,3]
[328667158,1717684270144,-167.59853777,0.00029999,3]
[328667159,1717684270155,-291.38628841,0.00029999,30]
[328667160,1717684270165,-6679.84982467,0.00029999,2]
[328667161,1717684270175,-154.57211479,0.00029999,2]
[328667162,1717684270186,-439551.4973701,0.00029999,2]
[328667163,1717684270196,-729.708649,0.00029999,7]
[328667164,1717684270206,-729.708649,0.00029999,7]
[328667165,1717684270216,-2539687.24698192,0.0003,2]
[328667166,1717684270232,-25462.44417468,0.0003,2]
[328667167,1717684270244,-3274.00981825,0.0003,2]
[328667168,1717684270256,-6996.64389408,0.0003,2]
[328667169,1717684270268,-2256.5324953,0.0003,2]
[328667170,1717684270280,-1229.69159329,0.0003,2]
[328667171,1717684270292,-1134.31999994,0.0003,2]
[328667172,1717684270304,-912.45,0.0003,2]
[328667173,1717684270317,-14924.06084579,0.0003,2]
[328667174,1717684270330,-106711.06218505,0.0003,2]
[328667175,1717684270342,-1308.30798617,0.0003,2]
[328667176,1717684270353,-40869.29554886,0.0003,2]
[328667177,1717684270394,-201.71,0.00027939,2]
[328667178,1717684270404,-1195.05750727,0.00029998,2]
[328667179,1717684270416,-2189.71409435,0.00029998,2]
[328667180,1717684270426,-5628.91765089,0.0003,2]
[328667181,1717684270438,-923.64272275,0.0003,2]
[328667182,1717684270450,-378.0759961,0.0003,2]
[328667183,1717684270461,-404.48230813,0.0003,2]
[328667184,1717684270473,-628.84855208,0.0003,2]
[328667185,1717684270484,-11468.27360759,0.0003,2]
[328667186,1717684270496,-413902.99886171,0.0003,2]
[328667187,1717684270508,-1047519.71975488,0.0003,2]
[328667188,1717684270520,-1445.6511972,0.0003,2]
[328667189,1717684270532,-818.90005,0.0003,2]
[328667190,1717684270724,-725.33517821,0.0003,2]
[328667191,1717684270745,-184.79594091,0.00028711,2]
[328667192,1717684270755,-1418.41006952,0.0003,2]
[328667193,1717684270766,-75554.00000029,0.0003,2]
[328667194,1717684270780,-877.08972445,0.0003,2]
[328667195,1717684270792,-474.36219289,0.0003,2]
[328667196,1717684270803,-485.64628292,0.0003,2]
[328667197,1717684270815,-462.1772013,0.0003,2]
[328667198,1717684270828,-534.16021158,0.0003,2]
[328667203,1717684835853,999.0,0.0003,90]
[328667205,1717684939202,730.10399991,0.0003,40]
[328667207,1717685343368,10920.07778147,9.977e-05,2]
[328667208,1717685351634,162.84,9.998e-05,2]
[328667209,1717685381825,6583.630162,0.00010022,2]
[328667210,1717685386402,25545.77065077,0.00025,30]
[328667211,1717685406271,1095.13595756,9.974e-05,2]
[328667212,1717685413487,2552.42616078,7.517e-05,2]
[328667213,1717685423133,5785.88993819,0.00010022,2]
[328667214,1717685429527,2552.42616078,7.517e-05,2]
[328667225,1717685432716,-2359.23882333,0.00010022,2]
[328667226,1717685432979,-2449.66743382,0.00010022,2]
[328667228,1717685432991,-12228.82899567,0.00010022,2]
[328667230,1717685433002,-2790.34058908,0.00010022,2]
[328667232,1717685433013,-10957.95669485,0.00010022,2]
[328667235,1717685433025,-3850.31055054,0.00010022,2]
[328667240,1717685434791,957.53926875,9.521e-05,2]
[328667251,1717685440391,-3225.07579854,0.00010022,2]
[328667252,1717685440739,-15393.01090699,0.00010022,2]
[328667253,1717685440753,-18661.0,0.00010022,2]
[328667254,1717685440768,-13565.0,0.00010022,2]
[328667255,1717685440782,-18144.0996,0.00010022,2]
[328667256,1717685440798,-4434.42630633,0.00010022,2]
[328667257,1717685440808,-217.27695731,0.00010069,2]
[328667258,1717685440818,-162.52861424,0.0001007,2]
[328667259,1717685440828,-2335.29723679,0.0001007,2]
[328667260,1717685440838,-3063.88513928,0.00010071,2]
[328667261,1717685440848,-490.24581051,0.00010072,2]
[328667262,1717685440857,-333.98930856,0.00010073,2]
[328667263,1717685440868,-3384.77160162,0.00010074,2]
[328667264,1717685440878,-150.0,0.00010228,2]
[328667265,1717685440888,-150.0,0.00010767,2]
[328667266,1717685440897,-11857.3278745,0.00010794,2]
[328667267,1717685440907,-783.17738963,0.00011,2]
[328667268,1717685440917,-185.619061,0.00011,2]
[328667269,1717685440934,-314.370939,0.00011,2]
[328667270,1717685440944,-210.0,0.00011251,2]
[328667271,1717685440954,-248.41,0.0001199,2]
[328667272,1717685440963,-191.0,0.00012376,2]
[328667273,1717685440973,-155.17160546,0.00012598,2]
[328667274,1717685440983,-155.10144388,0.00012598,2]
[328667275,1717685440993,-4101.93101166,0.00013088,2]
[328667276,1717685441009,-4199.88,0.00013088,2]
[328667277,1717685441024,-3187.14898834,0.00013088,2]
[328667278,1717685441035,-250.0,0.00013308,2]
[328667279,1717685441045,-339.17922691,0.00013858,2]
[328667280,1717685441055,-381.8563,0.000139,2]
[328667281,1717685441066,-3073.41548475,0.000139,2]
[328667282,1717685441122,-14941.94521525,0.000139,2]
[328667283,1717685441133,-1000.0,0.000139,2]
[328667284,1717685441144,-567.06504159,0.00013919,2]
[328667285,1717685441154,-1183.93614748,0.00013919,2]
[328667286,1717685441167,-166.97172072,0.00013919,2]
[328667287,1717685441177,-324.17435205,0.00013919,2]
[328667288,1717685441187,-4610.3336856,0.00013985,2]
[328667289,1717685441197,-859.37,0.0001399,3]
[328667290,1717685441210,-152.09,0.0001399,2]
[328667291,1717685441221,-184.79594091,0.0001399,2]
[328667292,1717685441231,-545.44684599,0.00013998,2]
[328667293,1717685441242,-541.17654791,0.00013998,2]
[328667294,1717685441252,-176.371291,0.00013998,2]
[328667295,1717685441262,-1000.0,0.00013998,2]
[328667296,1717685441273,-1260.44934067,0.00013998,2]
[328667297,1717685441283,-155.0,0.00013998,2]
[328667298,1717685441293,-155.0,0.00013998,2]
[328667299,1717685441304,-1139.55065933,0.00013998,2]
[328667300,1717685441314,-1182.76680112,0.00013998,2]
[328667301,1717685441325,-1391.1277063,0.00013998,2]
[328667302,1717685441336,-537.23750335,0.00013998,2]
[328667303,1717685441346,-155.0,0.00013998,2]
[328667304,1717685441357,-10968.56338147,0.00013998,2]
[328667305,1717685441368,-7537.31948195,0.00013998,2]
[328667306,1717685441378,-856.97889331,0.00013999,2]
[328667307,1717685441388,-237046.51207033,0.00014,2]
[328667309,1717685442829,-48230.22803712,0.00014,2]
[328667310,1717685442841,-896.16275852,0.00014,2]
[328667311,1717685442853,-1493.23617324,0.00014,2]
[328667313,1717685443084,-3579.49470001,0.00014,2]
[328667331,1717685443849,-1770.86905159,0.00014,2]
[328667333,1717685443861,-12119.55806068,0.00014,2]
[328667335,1717685443874,-2465.4215687,0.00014,2]
[328667337,1717685443887,-795.10676693,0.00014,2]
[328667340,1717685444490,-732308.27112321,0.00014,2]
[328667342,1717685444502,-378357.01058202,0.00014,2]
[328667344,1717685444514,-1775.30130806,0.00014,2]
[328667352,1717685445502,185.33527901,7.517e-05,2]
[328667353,1717685446699,-98325.02696058,0.00014,2]
[328667357,1717685447153,-538.11162319,0.00014,2]
[328667358,1717685448703,-268.2438568,0.00014,2]
[328667367,1717685448801,981.59070832,9.521e-05,2]
[328667368,1717685459077,140168.95671915,9.521e-05,2]
[328667369,1717685459100,2000.0,9.521e-05,2]
[328667370,1717685459123,500.0,9.521e-05,2]
[328667371,1717685459149,201652.39357006,9.521e-05,2]
[328667372,1717685463552,1362.61061232,9.521e-05,2]
[328667373,1717685463942,19763.89772466,9.521e-05,2]
[328667374,1717685470506,362.72006922,9.521e-05,2]
[328667375,1717685966042,5000.0,0.0003,40]
[328667377,1717685985679,10868.0,0.0003,40]
[328667391,1717686631918,-641.37290133,0.00012603,2]
[328667394,1717686631930,-144.47221237,0.00012603,2]
[328667396,1717686631941,-3384.77160162,0.00012604,2]
[328667397,1717686631952,-3063.88513928,0.00012604,2]
[328667399,1717686631961,-1828.34027536,0.00012614,2]
[328667402,1717686632201,-506.95696143,0.00012614,2]
[328667403,1717686632212,-535.99330686,0.00012615,2]
[328667404,1717686632222,-162.99818709,0.00012616,2]
[328667405,1717686632232,-156.04,0.00012723,2]
[328667406,1717686632243,-168.31,0.00012945,2]
[328667407,1717686632253,-1000.0,0.00012945,2]
[328667408,1717686632265,-725.97,0.00012945,2]
[328667409,1717686632275,-250.0,0.00012945,2]
[328667410,1717686632285,-16024.61,0.00012945,2]
[328667411,1717686632296,-281.7,0.00013083,2]
[328667412,1717686632306,-150.99,0.00013989,2]
[328667413,1717686632316,-1726.83,0.0001399,2]
[328667414,1717686632326,-224.99,0.0001399,2]
[328667415,1717686632336,-4973.37173443,0.0001399,2]
[328667416,1717686632347,-5196.67,0.0001399,2]
[328667417,1717686632357,-859.32,0.0001399,3]
[328667418,1717686632367,-7960.19874885,0.00013999,2]
[328667419,1717686632378,-161784.6573431,0.00014,2]
[328667420,1717686632390,-499.99,0.00014,2]
[328667421,1717686632400,-1120.93306,0.00014,2]
[328667422,1717686632409,-171.38,0.00014457,2]
[328667423,1717686632419,-155.44,0.00014494,2]
[328667424,1717686632429,-1000.0,0.00014563,2]
[328667425,1717686632439,-1729.38,0.00014645,2]
[328667426,1717686632450,-155.44,0.00014646,2]
[328667427,1717686632460,-2445.45,0.00014698,2]
[328667428,1717686632470,-250.0,0.00014742,2]
[328667429,1717686632480,-1322.49,0.00014771,2]
[328667431,1717686632490,-155.44,0.00014797,2]
[328667433,1717686632500,-436.9,0.00014879,2]
[328667435,1717686632510,-155.44,0.00014948,2]
[328667437,1717686632523,-45991.20005306,0.00015,2]
[328667439,1717686632536,-418.9295176,0.00015,2]
[328667441,1717686632547,-472.04,0.00015,2]
[328667444,1717686632560,-700.0,0.00015,2]
[328667446,1717686632572,-34750.0,0.00015,2]
[328667450,1717686632609,-6767.07114583,0.00015,2]
[328667453,1717686632621,-3602.44257493,0.00015,2]
[328667455,1717686632635,-15259.76748364,0.00015,2]
[328667457,1717686632646,-969.45652537,0.00015,2]
[328667460,1717686632659,-3367.93087916,0.00015,2]
[328667462,1717686632671,-1565.31339387,0.00015,2]
[328667464,1717686632682,-6956.2848,0.00015,2]
[328667466,1717686632695,-811.05669613,0.00015,2]
[328667469,1717686632708,-250.48725582,0.00015,2]
[328667471,1717686632719,-418.54007673,0.00015,2]
[328667473,1717686632731,-553.94826407,0.00015,2]
[328667492,1717686638085,-3519.55,0.00015,2]
[328667493,1717686638098,-92354.8582557,0.00015,2]
[328667494,1717686638108,-155.44,0.00015099,2]
[328667495,1717686638117,-1066.10471387,0.00015247,2]
[328667496,1717686638127,-155.44,0.0001525,2]
[328667497,1717686638137,-281.7,0.00015347,2]
[328667498,1717686638146,-1000.0,0.00016181,2]
[328667499,1717686638156,-7686.66905294,0.00017225,2]
[328667500,1717686638166,-1066.10471386,0.0001734,2]
[328667501,1717686638176,-1729.38,0.00017384,2]
[328667502,1717686638185,-281.7,0.0001761,2]
[328667503,1717686638195,-1000.0,0.00017799,2]
[328667504,1717686638205,-1120.93307,0.00019,2]
[328667505,1717686638214,-5613.1592505,0.00019177,2]
[328667506,1717686638224,-357.07679793,0.00019178,2]
[328667507,1717686638233,-500.0,0.00019178,2]
[328667508,1717686638244,-2704.82892255,0.000192,2]
[328667509,1717686638253,-1000.0,0.00019417,2]
[328667510,1717686638263,-1066.10471386,0.00019434,2]
[328667511,1717686638272,-200.51,0.00019621,2]
[328667512,1717686638281,-281.7,0.00019874,2]
[328667513,1717686638291,-1980.08690757,0.0002,2]
[328667514,1717686638300,-226.60187199,0.000201,2]
[328667515,1717686638309,-1729.38,0.00020124,2]
[328667516,1717686638319,-171.38,0.00020239,2]
[328667517,1717686638328,-1066.10471386,0.00021527,2]
[328667518,1717686638337,-378.34,0.00021918,2]
[328667519,1717686638347,-250.0,0.00021918,2]
[328667520,1717686638356,-457.81,0.00021918,2]
[328667521,1717686638366,-281.7,0.00022138,2]
[328667522,1717686638375,-1066.10471386,0.0002362,2]
[328667524,1717686638384,-1120.93306,0.00024,2]
[328667526,1717686638395,-150.0,0.00024163,2]
[328667528,1717686638405,-173.688,0.00024163,2]
[328667530,1717686638415,-166.97172071,0.00024284,2]
[328667532,1717686638425,-160.49,0.00024384,2]
[328667534,1717686638435,-349.38,0.00024384,2]
[328667536,1717686638444,-213.56,0.00024384,2]
[328667538,1717686638454,-157.98,0.00024384,2]
[328667540,1717686638464,-281.7,0.00024402,2]
[328667542,1717686638474,-405.44738181,0.00024798,2]
[328667543,1717686638483,-405.44738174,0.00024798,2]
[328667545,1717686638493,-405.44738174,0.00024798,2]
[328667546,1717686638503,-405.44738174,0.00024798,2]
[328667548,1717686638513,-405.44738174,0.00024798,2]
[328667550,1717686638528,-405.44738174,0.00024798,2]
[328667552,1717686638538,-405.44738174,0.00024798,2]
[328667553,1717686638548,-159.90388307,0.00024799,2]
[328667554,1717686638558,-159.90388304,0.00024799,2]
[328667555,1717686638569,-159.90388304,0.00024799,2]
[328667556,1717686638580,-159.90388304,0.00024799,2]
[328667557,1717686638589,-159.90388304,0.00024799,2]
[328667558,1717686638600,-159.90388304,0.00024799,2]
[328667559,1717686638609,-201.27018178,0.00025,2]
[328667560,1717686638619,-199.37929153,0.00025,2]
[328667561,1717686638628,-183.78610967,0.00025,2]
[328667562,1717686638639,-706.05483356,0.00025,2]
[328667563,1717686638648,-1066.10471386,0.00025713,2]
[328667564,1717686638657,-2883.0,0.000258,3]
[328667565,1717686638666,-786.0,0.000258,3]
[328667566,1717686638676,-159.90388304,0.000259,2]
[328667567,1717686638685,-1000.0,0.00026,6]
[328667568,1717686638696,-500.0,0.00026244,2]
[328667569,1717686638706,-500.0,0.00026244,2]
[328667570,1717686638715,-405.44738174,0.00026344,2]
[328667571,1717686638725,-2051.3470854,0.000266,2]
[328667572,1717686638734,-281.7,0.00026666,2]
[328667573,1717686638744,-6815.03486143,0.00026998,10]
[328667574,1717686638756,-22005.18222646,0.00026998,10]
[328667575,1717686638766,-639.96226292,0.00027,2]
[328667576,1717686638776,-200.0,0.00027,2]
[328667577,1717686638786,-172.0,0.00027163,2]
[328667578,1717686638796,-213.3855,0.00027297,2]
[328667579,1717686638806,-500.0,0.0002734,2]
[328667580,1717686638815,-500.0,0.0002734,2]
[328667581,1717686638825,-184.79594092,0.00027387,2]
[328667582,1717686638834,-314.09891412,0.00027397,4]
[328667583,1717686638844,-500.0,0.00027397,4]
[328667584,1717686638853,-619.56,0.00027397,4]
[328667585,1717686638863,-500.0,0.00027397,4]
[328667586,1717686638872,-500.0,0.00027397,4]
[328667587,1717686638881,-500.0,0.00027397,4]
[328667588,1717686638901,-500.0,0.00027397,4]
[328667589,1717686638913,-283.19827148,0.00027397,4]
[328667590,1717686638923,-250.0,0.00027397,4]
[328667591,1717686638933,-456.2723144,0.00027397,4]
[328667592,1717686638943,-500.0,0.00027397,4]
[328667593,1717686638952,-500.0,0.00027397,4]
[328667594,1717686638962,-500.0,0.00027397,4]
[328667595,1717686638972,-500.0,0.00027397,2]
[328667596,1717686638982,-500.0,0.00027397,4]
[328667597,1717686638992,-520.09005804,0.00027397,4]
[328667598,1717686639001,-500.0,0.00027397,4]
[328667599,1717686639012,-209.98927595,0.00027397,4]
[328667600,1717686639022,-500.0,0.00027397,4]
[328667601,1717686639032,-500.0,0.00027397,4]
[328667602,1717686639043,-201.46661541,0.00027397,4]
[328667603,1717686639053,-500.0,0.00027397,4]
[328667604,1717686639063,-531.76,0.00027397,4]
[328667605,1717686639074,-500.0,0.00027397,4]
[328667606,1717686639084,-500.0,0.00027397,4]
[328667607,1717686639094,-500.0,0.00027397,4]
[328667608,1717686639105,-500.0,0.00027397,2]
[328667609,1717686639115,-636.0,0.00027397,4]
[328667610,1717686639125,-500.0,0.00027397,4]
[328667611,1717686639136,-466.63426081,0.00027397,4]
[328667612,1717686639146,-561.16085992,0.00027397,4]
[328667613,1717686639157,-480.48054933,0.00027397,4]
[328667614,1717686639168,-500.0,0.00027397,4]
[328667615,1717686639178,-500.0,0.00027397,4]
[328667616,1717686639189,-500.0,0.00027397,4]
[328667617,1717686639200,-500.0,0.00027397,4]
[328667618,1717686639210,-500.0,0.00027397,4]
[328667619,1717686639221,-500.0,0.00027397,4]
[328667620,1717686639231,-500.0,0.00027397,4]
[328667621,1717686639242,-500.0,0.00027397,4]
[328667622,1717686639252,-500.0,0.00027397,4]
[328667623,1717686639268,-500.0,0.00027397,4]
[328667624,1717686639279,-500.0,0.00027397,4]
[328667625,1717686639289,-500.0,0.00027397,4]
[328667626,1717686639301,-500.0,0.00027397,4]
[328667627,1717686639311,-500.0,0.00027397,4]
[328667628,1717686639322,-517.51,0.00027397,4]
[328667629,1717686639332,-500.0,0.00027397,4]
[328667630,1717686639344,-500.0,0.00027397,4]
[328667631,1717686639354,-500.0,0.00027397,4]
[328667632,1717686639366,-500.0,0.00027397,4]
[328667633,1717686639377,-500.0,0.00027397,4]
[328667634,1717686639388,-500.0,0.00027397,4]
[328667635,1717686639398,-190.37331982,0.00027397,4]
[328667636,1717686639411,-500.0,0.00027397,4]
[328667637,1717686639425,-1016.7,0.00027397,4]
[328667638,1717686639436,-617.58622161,0.00027397,4]
[328667639,1717686639446,-500.0,0.00027397,4]
[328667640,1717686639457,-500.0,0.00027397,4]
[328667641,1717686639468,-500.0,0.00027397,4]
[328667642,1717686639479,-500.0,0.00027397,4]
[328667643,1717686639490,-500.0,0.00027397,4]
[328667644,1717686639501,-500.0,0.00027397,4]
[328667645,1717686639517,-500.0,0.00027397,4]
[328667646,1717686639533,-500.0,0.00027397,4]
[328667647,1717686639545,-500.0,0.00027397,4]
[328667648,1717686639556,-500.0,0.00027397,4]
[328667649,1717686639567,-514.49159259,0.00027397,4]
[328667650,1717686639578,-500.0,0.00027397,4]
[328667651,1717686639590,-500.0,0.00027397,4]
[328667652,1717686639601,-500.0,0.00027397,4]
[328667653,1717686639613,-266.23845611,0.00027397,4]
[328667654,1717686639623,-500.0,0.00027397,4]
[328667655,1717686639633,-500.0,0.00027397,4]
[328667656,1717686639645,-500.0,0.00027397,4]
[328667657,1717686639655,-500.0,0.00027397,4]
[328667658,1717686639665,-500.0,0.00027397,4]
[328667659,1717686639675,-168.14669434,0.00027397,4]
[328667660,1717686639684,-500.0,0.00027397,4]
[328667661,1717686639695,-500.0,0.00027397,4]
[328667662,1717686639705,-500.0,0.00027397,4]
[328667663,1717686639715,-598.2868179,0.00027397,4]
[328667664,1717686639725,-500.0,0.00027397,4]
[328667665,1717686639735,-500.0,0.00027397,4]
[328667666,1717686639747,-500.0,0.00027397,4]
[328667667,1717686639757,-500.0,0.00027397,4]
[328667668,1717686639767,-500.0,0.00027397,4]
[328667669,1717686639778,-500.0,0.00027397,4]
[328667670,1717686639787,-500.0,0.00027397,4]
[328667672,1717686639802,-500.0,0.00027397,4]
[328667673,1717686639812,-500.0,0.00027397,4]
[328667674,1717686639823,-500.0,0.00027397,4]
[328667675,1717686639833,-500.0,0.00027397,4]
[328667676,1717686639843,-500.0,0.00027397,4]
[328667677,1717686639854,-500.0,0.00027397,4]
[328667678,1717686639863,-500.0,0.00027397,4]
[328667679,1717686639982,-500.0,0.00027397,4]
[328667680,1717686639992,-543.98079948,0.00027397,4]
[328667681,1717686640002,-500.0,0.00027397,4]
[328667682,1717686640012,-500.0,0.00027397,4]
[328667683,1717686640021,-500.0,0.00027397,4]
[328667684,1717686640032,-150.0,0.00027397,4]
[328667685,1717686640042,-500.0,0.00027397,4]
[328667686,1717686640052,-500.0,0.00027397,4]
[328667687,1717686640062,-573.51,0.00027397,4]
[328667688,1717686640072,-502.72,0.00027397,4]
[328667689,1717686640082,-500.0,0.00027397,4]
[328667690,1717686640091,-271.47552781,0.00027397,4]
[328667691,1717686640100,-500.0,0.00027397,4]
[328667692,1717686640110,-778.52,0.00027397,4]
[328667693,1717686640121,-500.0,0.00027397,4]
[328667694,1717686640131,-591.19045558,0.00027397,4]
[328667695,1717686640143,-500.0,0.00027397,4]
[328667696,1717686640152,-500.0,0.00027397,4]
[328667697,1717686640162,-500.0,0.00027397,4]
[328667698,1717686640172,-562.74432337,0.00027397,4]
[328667699,1717686640181,-565.04,0.00027397,4]
[328667700,1717686640191,-500.0,0.00027397,4]
[328667701,1717686640201,-500.0,0.00027397,4]
[328667702,1717686640211,-1965.25,0.00027397,4]
[328667703,1717686640220,-500.0,0.00027397,4]
[328667704,1717686640230,-500.0,0.00027397,4]
[328667705,1717686640240,-1598.65,0.00027397,4]
[328667706,1717686640249,-952.89,0.00027397,4]
[328667707,1717686640259,-500.0,0.00027397,4]
[328667708,1717686640269,-500.0,0.00027397,4]
[328667709,1717686640278,-886.3,0.00027397,4]
[328667710,1717686640288,-500.0,0.00027397,4]
[328667711,1717686640298,-500.0,0.00027397,4]
[328667712,1717686640308,-2073.66,0.00027397,4]
[328667713,1717686640318,-3741.02,0.00027397,4]
[328667714,1717686640328,-500.0,0.00027397,4]
[328667715,1717686640338,-964.49,0.00027397,4]
[328667716,1717686640348,-500.0,0.00027397,4]
[328667717,1717686640358,-500.0,0.00027397,4]
[328667718,1717686640369,-500.0,0.00027397,4]
[328667719,1717686640379,-500.0,0.00027397,4]
[328667720,1717686640389,-500.0,0.00027397,4]
[328667721,1717686640399,-500.0,0.00027397,4]
[328667722,1717686640408,-500.0,0.00027397,4]
[328667723,1717686640418,-500.0,0.00027397,4]
[328667724,1717686640429,-500.0,0.00027397,4]
[328667725,1717686640439,-500.0,0.00027397,4]
[328667726,1717686640450,-500.0,0.00027397,4]
[328667727,1717686640460,-500.0,0.00027397,4]
[328667728,1717686640469,-500.0,0.00027397,4]
[328667729,1717686640479,-500.0,0.00027397,4]
[328667730,1717686640489,-500.0,0.00027397,4]
[328667731,1717686640498,-500.0,0.00027397,4]
[328667732,1717686640508,-500.0,0.00027397,4]
[328667733,1717686640518,-500.0,0.00027397,4]
[328667734,1717686640531,-1778.3,0.00027397,4]
[328667735,1717686640540,-500.0,0.00027397,4]
[328667736,1717686640550,-500.0,0.00027397,4]
[328667737,1717686640560,-500.0,0.00027397,4]
[328667738,1717686640571,-500.0,0.00027397,4]
[328667739,1717686640581,-500.0,0.00027397,4]
[328667740,1717686640591,-500.0,0.00027397,4]
[328667741,1717686640601,-500.0,0.00027397,4]
[328667742,1717686640612,-500.0,0.00027397,4]
[328667743,1717686640622,-500.0,0.00027397,4]
[328667744,1717686640632,-500.0,0.00027397,4]
[328667745,1717686640644,-958.91,0.00027397,4]
[328667746,1717686640654,-500.0,0.00027397,4]
[328667747,1717686640664,-500.0,0.00027397,4]
[328667748,1717686640673,-500.0,0.00027397,4]
[328667749,1717686640683,-500.0,0.00027397,4]
[328667750,1717686640693,-500.0,0.00027397,4]
[328667751,1717686640703,-1603.64,0.00027397,4]
[328667752,1717686640713,-1509.84,0.00027397,4]
[328667753,1717686640723,-500.0,0.00027397,4]
[328667754,1717686640733,-500.0,0.00027397,4]
[328667755,1717686640743,-500.0,0.00027397,4]
[328667756,1717686640753,-500.0,0.00027397,4]
[328667757,1717686640763,-386.54385305,0.00027397,4]
[328667758,1717686640773,-500.0,0.00027397,4]
[328667759,1717686640783,-500.0,0.00027397,4]
[328667760,1717686640792,-1090.54,0.00027397,4]
[328667761,1717686640802,-500.0,0.00027397,4]
[328667762,1717686640811,-500.0,0.00027397,4]
[328667763,1717686640820,-500.0,0.00027397,4]
[328667764,1717686640830,-500.0,0.00027397,4]
[328667765,1717686640839,-500.0,0.00027397,4]
[328667766,1717686640848,-500.0,0.00027397,4]
[328667767,1717686640858,-451.62282753,0.00027397,4]
[328667768,1717686640868,-500.0,0.00027397,4]
[328667769,1717686640877,-686.36,0.00027397,4]
[328667770,1717686640886,-500.0,0.00027397,4]
[328667771,1717686640896,-1463.21,0.00027397,4]
[328667772,1717686640906,-500.0,0.00027397,4]
[328667773,1717686640915,-723.48,0.00027397,4]
[328667774,1717686640924,-500.0,0.00027397,4]
[328667775,1717686640934,-958.42,0.00027397,4]
[328667776,1717686640943,-500.0,0.00027397,4]
[328667777,1717686640952,-500.0,0.00027397,4]
[328667778,1717686640963,-633.24,0.00027397,4]
[328667779,1717686640972,-608.51,0.00027397,4]
[328667780,1717686640981,-500.0,0.00027397,4]
[328667781,1717686640991,-500.0,0.00027397,4]
[328667782,1717686641001,-500.0,0.00027397,4]
[328667783,1717686641010,-500.0,0.00027397,4]
[328667784,1717686641020,-500.0,0.00027397,4]